fUSD/lending_fUSD_20260517
["ID","MTS","AMOUNT","RATE_DAILY","PERIOD"]
[422451218,1778963433000,-808.25483351,0.00018601,2]
[422451221,1778963433000,-808.25483351,0.00018601,2]
[422451220,1778963433000,-808.25483351,0.00018601,2]
[422451225,1778963433000,-808.25483351,0.00018601,2]
[422451231,1778963433000,-808.25483351,0.00018601,2]
[422451228,1778963433000,-808.25483351,0.00018601,2]
[422451252,1778963433000,-808.25483351,0.00018601,2]
[422451242,1778963433000,-808.25483351,0.00018601,2]
[422451237,1778963433000,-808.25483351,0.00018601,2]
[422451235,1778963433000,-808.25483351,0.00018601,2]
[422451236,1778963433000,-808.25483351,0.00018601,2]
[422451229,1778963433000,-808.25483351,0.00018601,2]
[422451238,1778963433000,-808.25483351,0.00018601,2]
[422451239,1778963433000,-808.25483351,0.00018601,2]
[422451240,1778963433000,-808.25483351,0.00018601,2]
[422451233,1778963433000,-808.25483351,0.00018601,2]
[422451230,1778963433000,-808.25483351,0.00018601,2]
[422451232,1778963433000,-808.25483351,0.00018601,2]
[422451307,1778963434000,-500.0,0.00018601,2]
[422451298,1778963434000,-815.17228517,0.00018601,2]
[422451301,1778963434000,-815.17228517,0.00018601,2]
[422451302,1778963434000,-815.17228517,0.00018601,2]
[422451305,1778963434000,-500.0,0.00018601,2]
[422451310,1778963434000,-500.0,0.00018601,2]
[422451309,1778963434000,-500.0,0.00018601,2]
[422451303,1778963434000,-500.0,0.00018601,2]
[422451308,1778963434000,-500.0,0.00018601,2]
[422451316,1778963434000,-500.0,0.00018601,2]
[422451317,1778963434000,-500.0,0.00018601,2]
[422451315,1778963434000,-228.9906859,0.00018601,2]
[422451311,1778963434000,-500.0,0.00018601,2]
[422451306,1778963434000,-255.19176217,0.00018601,2]
[422451314,1778963434000,-500.0,0.00018601,2]
[422451319,1778963434000,-500.0,0.00018601,2]
[422451318,1778963434000,-500.0,0.00018601,2]
[422451329,1778963434000,-500.0,0.00018601,2]
[422451297,1778963434000,-815.17228517,0.00018601,2]
[422451312,1778963434000,-500.0,0.00018601,2]
[422451300,1778963434000,-815.17228517,0.00018601,2]
[422451299,1778963434000,-815.17228517,0.00018601,2]
[422451294,1778963434000,-815.17228517,0.00018601,2]
[422451322,1778963434000,-981.83895183,0.00018601,2]
[422451279,1778963434000,-815.17228517,0.00018601,2]
[422451277,1778963434000,-815.17228517,0.00018601,2]
[422451278,1778963434000,-815.17228517,0.00018601,2]
[422451281,1778963434000,-815.17228517,0.00018601,2]
[422451283,1778963434000,-815.17228517,0.00018601,2]
[422451284,1778963434000,-815.17228517,0.00018601,2]
[422451280,1778963434000,-815.17228517,0.00018601,2]
[422451282,1778963434000,-815.17228517,0.00018601,2]
[422451304,1778963434000,-500.0,0.00018601,2]
[422451285,1778963434000,-815.17228517,0.00018601,2]
[422451292,1778963434000,-815.17228517,0.00018601,2]
[422451286,1778963434000,-815.17228517,0.00018601,2]
[422451288,1778963434000,-815.17228517,0.00018601,2]
[422451287,1778963434000,-815.17228517,0.00018601,2]
[422451290,1778963434000,-815.17228517,0.00018601,2]
[422451289,1778963434000,-815.17228517,0.00018601,2]
[422451293,1778963434000,-815.17228517,0.00018601,2]
[422451295,1778963434000,-815.17228517,0.00018601,2]
[422451296,1778963434000,-815.17228517,0.00018601,2]
[422451291,1778963434000,-815.17228517,0.00018601,2]
[422451330,1778963434000,-269.51933,0.00018601,2]
[422451313,1778963434000,-500.0,0.00018601,2]
[422451321,1778963434000,-206.92283502,0.00018601,2]
[422451352,1778963434000,-194619.74237394,0.00018602,2]
[422451351,1778963434000,-106051.90405188,0.00018602,2]
[422451347,1778963434000,-300.0,0.00018601,2]
[422451345,1778963434000,-450.0,0.00018601,2]
[422451348,1778963434000,-300.0,0.00018601,2]
[422451346,1778963434000,-230.73232478,0.00018601,2]
[422451354,1778963434000,-1254.41808677,0.00018602,2]
[422451355,1778963434000,-615.73022702,0.00018602,2]
[422451361,1778963434000,-3828.28037571,0.00018602,2]
[422451349,1778963434000,-213.37737141,0.00018602,2]
[422451362,1778963434000,-388.019697,0.00018602,2]
[422451357,1778963434000,-299.23478,0.00018602,2]
[422451360,1778963434000,-1763.20802313,0.00018602,2]
[422451358,1778963434000,-9293.7297478,0.00018602,2]
[422451359,1778963434000,-4800.74438523,0.00018602,2]
[422451365,1778963434000,-659.1457183,0.00018602,2]
[422451366,1778963434000,-952.0,0.00018602,2]
[422451368,1778963434000,-627.92076636,0.00018602,2]
[422451364,1778963434000,-4751.41049392,0.00018602,2]
[422451320,1778963434000,-500.0,0.00018601,2]
[422451363,1778963434000,-10878.70377158,0.00018602,2]
[422451342,1778963434000,-168.9427013,0.00018601,2]
[422451356,1778963434000,-699.59791438,0.00018602,2]
[422451367,1778963434000,-2860.62950549,0.00018602,2]
[422451353,1778963434000,-337893.61093779,0.00018602,2]
[422451323,1778963434000,-981.83895183,0.00018601,2]
[422451326,1778963434000,-500.0,0.00018601,2]
[422451327,1778963434000,-500.0,0.00018601,2]
[422451328,1778963434000,-500.0,0.00018601,2]
[422451369,1778963434000,-540.58542602,0.00018602,2]
[422451324,1778963434000,-981.83895183,0.00018601,2]
[422451331,1778963434000,-450.0,0.00018601,2]
[422451333,1778963434000,-500.21402607,0.00018601,2]
[422451334,1778963434000,-482.36769952,0.00018601,2]
[422451335,1778963434000,-500.0,0.00018601,2]
[422451325,1778963434000,-500.0,0.00018601,2]
[422451337,1778963434000,-500.0,0.00018601,2]
[422451332,1778963434000,-339.23296178,0.00018601,2]
[422451339,1778963434000,-500.0,0.00018601,2]
[422451338,1778963434000,-500.0,0.00018601,2]
[422451340,1778963434000,-500.0,0.00018601,2]
[422451341,1778963434000,-500.0,0.00018601,2]
[422451343,1778963434000,-500.0,0.00018601,2]
[422451350,1778963434000,-775010.95560075,0.00018602,2]
[422451344,1778963434000,-500.0,0.00018601,2]
[422451336,1778963434000,-500.0,0.00018601,2]
[422451422,1778963438000,-200.0,0.00018702,2]
[422451414,1778963438000,-53511.7466909,0.00018699,2]
[422451416,1778963438000,-945.6,0.000187,2]
[422451417,1778963438000,-1700.0,0.000187,6]
[422451423,1778963438000,-200.0,0.00018702,2]
[422451430,1778963438000,-283.24486373,0.00018702,2]
[422451431,1778963438000,-154.0,0.00018702,2]
[422451419,1778963438000,-151.0,0.00018702,2]
[422451418,1778963438000,-300.0,0.00018701,2]
[422451420,1778963438000,-469.75308229,0.00018702,2]
[422451411,1778963438000,-2494.55939289,0.00018627,2]
[422451409,1778963438000,-150.0,0.00018602,2]
[422451412,1778963438000,-300.0,0.00018698,2]
[422451410,1778963438000,-524.40294489,0.00018626,2]
[422451408,1778963438000,-150.0,0.00018602,2]
[422451407,1778963438000,-150.0,0.00018602,2]
[422451405,1778963438000,-2500000.0,0.00018602,2]
[422451406,1778963438000,-150.0,0.00018602,2]
[422451404,1778963438000,-40068.51422116,0.00018602,2]
[422451403,1778963438000,-929.15347688,0.00018602,2]
[422451402,1778963438000,-1212.76041889,0.00018602,2]
[422451413,1778963438000,-300.0,0.00018698,2]
[422451425,1778963438000,-200.0,0.00018702,2]
[422451415,1778963438000,-127954.8300665,0.00018699,2]
[422451424,1778963438000,-238.32596129,0.00018702,2]
[422451421,1778963438000,-2000.0,0.00018702,2]
[422451456,1778963438000,-1540.0,0.00018702,2]
[422451451,1778963438000,-1540.0,0.00018702,2]
[422451449,1778963438000,-1540.0,0.00018702,2]
[422451448,1778963438000,-1540.0,0.00018702,2]
[422451446,1778963438000,-1540.0,0.00018702,2]
[422451440,1778963438000,-151.0,0.00018702,2]
[422451436,1778963438000,-151.0,0.00018702,2]
[422451434,1778963438000,-1540.0,0.00018702,2]
[422451432,1778963438000,-235.51572405,0.00018702,2]
[422451438,1778963438000,-1540.0,0.00018702,2]
[422451453,1778963438000,-1540.0,0.00018702,2]
[422451435,1778963438000,-1540.0,0.00018702,2]
[422451445,1778963438000,-1540.0,0.00018702,2]
[422451444,1778963438000,-1540.0,0.00018702,2]
[422451443,1778963438000,-207.91673118,0.00018702,2]
[422451442,1778963438000,-151.0,0.00018702,2]
[422451433,1778963438000,-323.40347551,0.00018702,2]
[422451429,1778963438000,-151.0,0.00018702,2]
[422451428,1778963438000,-1534.0,0.00018702,2]
[422451427,1778963438000,-1540.0,0.00018702,2]
[422451441,1778963438000,-1540.0,0.00018702,2]
[422451426,1778963438000,-1540.0,0.00018702,2]
[422451517,1778963439000,-200.0,0.00019269,2]
[422451521,1778963439000,-2000.0,0.00019392,2]
[422451523,1778963439000,-226.73754352,0.000194,2]
[422451524,1778963439000,-184.1,0.000194,2]
[422451513,1778963439000,-514.11230416,0.00019202,2]
[422451520,1778963439000,-158.7,0.00019318,2]
[422451518,1778963439000,-514.11230416,0.00019273,2]
[422451516,1778963439000,-200.0,0.00019269,2]
[422451519,1778963439000,-226.73754352,0.000193,2]
[422451514,1778963439000,-514.11230416,0.00019258,2]
[422451515,1778963439000,-200.0,0.00019269,2]
[422451522,1778963439000,-514.11230416,0.00019399,2]
[422451526,1778963439000,-184.1,0.000194,2]
[422451530,1778963439000,-200.0,0.00019461,2]
[422451525,1778963439000,-184.1,0.000194,2]
[422451537,1778963439000,-150.43976418,0.000196,2]
[422451527,1778963439000,-184.1,0.000194,2]
[422451531,1778963439000,-200.0,0.00019461,2]
[422451533,1778963439000,-514.11230416,0.00019527,2]
[422451534,1778963439000,-514.11230416,0.00019552,2]
[422451529,1778963439000,-514.11230416,0.00019431,2]
[422451532,1778963439000,-200.0,0.00019461,2]
[422451512,1778963439000,-18345.59,0.00019178,2]
[422451535,1778963439000,-514.11230416,0.00019567,2]
[422451538,1778963439000,-500.0,0.00019616,2]
[422451541,1778963439000,-514.11230416,0.00019748,2]
[422451540,1778963439000,-514.11230416,0.00019747,2]
[422451536,1778963439000,-226.73754352,0.000196,2]
[422451528,1778963439000,-514.11230416,0.00019409,2]
[422451498,1778963439000,-159.63,0.00019153,2]
[422451503,1778963439000,-3000.0,0.00019178,2]
[422451549,1778963439000,-514.11230416,0.00019961,2]
[422451460,1778963439000,-1540.0,0.00018702,2]
[422451458,1778963439000,-1540.0,0.00018702,2]
[422451462,1778963439000,-1540.0,0.00018702,2]
[422451464,1778963439000,-1684.50576064,0.00018702,2]
[422451467,1778963439000,-3397.24,0.0001872,2]
[422451469,1778963439000,-500.0,0.00018767,2]
[422451471,1778963439000,-2200.0,0.000188,6]
[422451481,1778963439000,-150.0,0.000189,2]
[422451483,1778963439000,-2800.0,0.000189,6]
[422451485,1778963439000,-178.91116504,0.00019,2]
[422451487,1778963439000,-1549.14776781,0.00019,2]
[422451479,1778963439000,-200.0,0.00018889,2]
[422451489,1778963439000,-200.0,0.00019078,2]
[422451477,1778963439000,-200.0,0.00018889,2]
[422451473,1778963439000,-576.92,0.00018819,2]
[422451475,1778963439000,-200.0,0.00018889,2]
[422451494,1778963439000,-200.0,0.00019078,2]
[422451491,1778963439000,-200.0,0.00019078,2]
[422451496,1778963439000,-823.0,0.00019131,2]
[422451508,1778963439000,-150.0,0.00019178,2]
[422451510,1778963439000,-150.0,0.00019178,2]
[422451509,1778963439000,-150.0,0.00019178,2]
[422451511,1778963439000,-201.93880536,0.00019178,2]
[422451499,1778963439000,-5400.67424511,0.00019165,2]
[422451504,1778963439000,-250.0,0.00019178,2]
[422451507,1778963439000,-261.82652302,0.00019178,2]
[422451505,1778963439000,-250.0,0.00019178,2]
[422451506,1778963439000,-250.0,0.00019178,2]
[422451501,1778963439000,-233.38956778,0.00019175,2]
[422451539,1778963439000,-514.11230416,0.0001967,2]
[422451568,1778963439000,-162.13449277,0.0002,2]
[422451550,1778963439000,-300.0,0.00019999,2]
[422451589,1778963439000,-3842.85,0.00020548,2]
[422451577,1778963439000,-514.11230416,0.00020162,2]
[422451579,1778963439000,-514.11230416,0.00020194,2]
[422451580,1778963439000,-198.63741418,0.00020252,21]
[422451583,1778963439000,-514.11230416,0.00020289,2]
[422451581,1778963439000,-785.33849929,0.00020252,21]
[422451584,1778963439000,-945.6,0.000203,2]
[422451586,1778963439000,-933.0,0.0002039,5]
[422451585,1778963439000,-605.6,0.00020381,2]
[422451582,1778963439000,-514.11230416,0.00020255,2]
[422451587,1778963439000,-5400.67424511,0.00020491,2]
[422451590,1778963439000,-3842.85,0.00020548,2]
[422451545,1778963439000,-5400.67424511,0.00019828,2]
[422451588,1778963439000,-576.92,0.0002053,2]
[422451601,1778963439000,-15000.0,0.00021,2]
[422451592,1778963439000,-3842.83,0.00020548,2]
[422451593,1778963439000,-19032.04,0.00020548,2]
[422451602,1778963439000,-4705.30436502,0.00021,2]
[422451595,1778963439000,-2500.0,0.00020774,2]
[422451597,1778963439000,-1350.0,0.00020774,7]
[422451596,1778963439000,-950.0,0.00020774,2]
[422451598,1778963439000,-166.49,0.00020822,2]
[422451600,1778963439000,-300.0,0.00020999,2]
[422451599,1778963439000,-1152.0,0.00020947,2]
[422451604,1778963439000,-160.0,0.00021,7]
[422451603,1778963439000,-529.5081285,0.00021,2]
[422451605,1778963439000,-15000.0,0.00021,2]
[422451606,1778963439000,-6111.0,0.00021,2]
[422451594,1778963439000,-450.70191553,0.00020548,2]
[422451578,1778963439000,-514.11230416,0.00020175,2]
[422451591,1778963439000,-3842.85,0.00020548,2]
[422451569,1778963439000,-243.0,0.0002,2]
[422451570,1778963439000,-155.0,0.0002,2]
[422451544,1778963439000,-514.11230416,0.00019804,2]
[422451548,1778963439000,-514.11230416,0.00019952,2]
[422451542,1778963439000,-514.11230416,0.00019765,2]
[422451547,1778963439000,-336.17,0.00019952,2]
[422451543,1778963439000,-226.73754352,0.000198,2]
[422451546,1778963439000,-514.11230416,0.00019878,2]
[422451552,1778963439000,-226.73754352,0.0002,2]
[422451562,1778963439000,-305.0,0.0002,2]
[422451563,1778963439000,-150.0,0.0002,2]
[422451553,1778963439000,-212.94,0.0002,2]
[422451554,1778963439000,-229.0,0.0002,2]
[422451559,1778963439000,-237.0,0.0002,2]
[422451560,1778963439000,-978.0,0.0002,2]
[422451551,1778963439000,-2000.0,0.0002,2]
[422451556,1778963439000,-641.0,0.0002,2]
[422451555,1778963439000,-159.0,0.0002,2]
[422451574,1778963439000,-514.11230416,0.00020136,2]
[422451564,1778963439000,-150.0,0.0002,2]
[422451567,1778963439000,-150.0,0.0002,2]
[422451576,1778963439000,-514.11230416,0.0002016,2]
[422451571,1778963439000,-482.0,0.0002,2]
[422451575,1778963439000,-514.11230416,0.00020148,2]
[422451572,1778963439000,-2001.118797,0.0002001,2]
[422451566,1778963439000,-150.0,0.0002,2]
[422451565,1778963439000,-150.0,0.0002,2]
[422451557,1778963439000,-822.0,0.0002,2]
[422451558,1778963439000,-235.0,0.0002,2]
[422451561,1778963439000,-1978.06,0.0002,2]
[422451573,1778963439000,-514.11230416,0.00020084,2]
[422451647,1778963440000,-152.0,0.00021595,2]
[422451644,1778963440000,-475.82,0.00021526,2]
[422451646,1778963440000,-152.0,0.00021595,2]
[422451648,1778963440000,-152.0,0.00021595,2]
[422451649,1778963440000,-152.0,0.00021595,2]
[422451652,1778963440000,-152.0,0.00021595,2]
[422451654,1778963440000,-152.0,0.00021595,2]
[422451651,1778963440000,-152.0,0.00021595,2]
[422451655,1778963440000,-152.0,0.00021595,2]
[422451643,1778963440000,-500.0,0.00021438,2]
[422451645,1778963440000,-151.0,0.00021595,2]
[422451638,1778963440000,-2000.0,0.00021331,2]
[422451650,1778963440000,-152.0,0.00021595,2]
[422451653,1778963440000,-152.0,0.00021595,2]
[422451670,1778963440000,-3074.97,0.00021918,2]
[422451658,1778963440000,-475.82,0.00021606,2]
[422451659,1778963440000,-475.82,0.00021606,2]
[422451642,1778963440000,-11952.45181751,0.00021409,2]
[422451660,1778963440000,-482.16,0.00021606,2]
[422451661,1778963440000,-680.36,0.00021616,2]
[422451664,1778963440000,-5400.67424511,0.00021818,2]
[422451662,1778963440000,-500.0,0.00021726,2]
[422451667,1778963440000,-159.63,0.0002189,2]
[422451663,1778963440000,-475.82,0.00021788,2]
[422451666,1778963440000,-482.16,0.0002187,2]
[422451657,1778963440000,-174.61919141,0.00021595,2]
[422451668,1778963440000,-945.6,0.000219,2]
[422451665,1778963440000,-1978.06,0.00021845,2]
[422451680,1778963440000,-305.0,0.00022,2]
[422451656,1778963440000,-152.0,0.00021595,2]
[422451639,1778963440000,-482.16,0.00021343,2]
[422451618,1778963440000,-155.0,0.00021,2]
[422451637,1778963440000,-1675.19,0.00021273,2]
[422451669,1778963440000,-289.0529305,0.00021918,3]
[422451615,1778963440000,-978.0,0.00021,2]
[422451614,1778963440000,-237.0,0.00021,2]
[422451612,1778963440000,-822.0,0.00021,2]
[422451608,1778963440000,-6111.0,0.00021,2]
[422451609,1778963440000,-229.0,0.00021,2]
[422451610,1778963440000,-159.0,0.00021,2]
[422451607,1778963440000,-15000.0,0.00021,2]
[422451611,1778963440000,-641.0,0.00021,2]
[422451613,1778963440000,-235.0,0.00021,2]
[422451616,1778963440000,-305.0,0.00021,2]
[422451617,1778963440000,-243.0,0.00021,2]
[422451620,1778963440000,-482.0,0.00021,2]
[422451619,1778963440000,-525.17782738,0.00021,2]
[422451627,1778963440000,-5400.67424511,0.00021154,2]
[422451626,1778963440000,-482.16,0.00021079,2]
[422451629,1778963440000,-169.15,0.0002119,2]
[422451621,1778963440000,-161.0,0.00021,2]
[422451623,1778963440000,-150.0,0.0002106,2]
[422451625,1778963440000,-475.82,0.00021079,2]
[422451624,1778963440000,-475.82,0.00021079,2]
[422451622,1778963440000,-475.82,0.00021001,2]
[422451632,1778963440000,-150.0,0.00021239,2]
[422451633,1778963440000,-215.0,0.00021239,2]
[422451630,1778963440000,-169.15,0.0002119,2]
[422451635,1778963440000,-2058.92,0.00021273,2]
[422451634,1778963440000,-475.82,0.00021263,2]
[422451640,1778963440000,-6463.45,0.0002137,2]
[422451631,1778963440000,-279.0,0.00021239,2]
[422451641,1778963440000,-450.70191553,0.00021404,2]
[422451681,1778963440000,-243.0,0.00022,2]
[422451636,1778963440000,-462.3,0.00021273,2]
[422451672,1778963440000,-812.97513299,0.00022,7]
[422451710,1778963440000,-202.73185857,0.00022488,2]
[422451737,1778963440000,-2000.0,0.00023069,2]
[422451720,1778963440000,-363.0,0.00023,30]
[422451722,1778963440000,-159.0,0.00023,2]
[422451709,1778963440000,-150.0,0.00022488,2]
[422451721,1778963440000,-229.0,0.00023,2]
[422451712,1778963440000,-1004.0,0.00022658,5]
[422451717,1778963440000,-1613.0,0.00022935,2]
[422451718,1778963440000,-299.33286419,0.00022964,2]
[422451713,1778963440000,-161.0,0.00022684,3]
[422451715,1778963440000,-150.0,0.000228,4]
[422451711,1778963440000,-882.0,0.00022658,5]
[422451714,1778963440000,-187.78006525,0.00022691,2]
[422451719,1778963440000,-648.42075488,0.00023,7]
[422451705,1778963440000,-150.0,0.00022488,2]
[422451716,1778963440000,-150.0,0.00022904,4]
[422451724,1778963440000,-822.0,0.00023,2]
[422451725,1778963440000,-235.0,0.00023,2]
[422451736,1778963440000,-2000.0,0.00023069,2]
[422451727,1778963440000,-978.0,0.00023,2]
[422451726,1778963440000,-237.0,0.00023,2]
[422451735,1778963440000,-2000.0,0.00023069,2]
[422451734,1778963440000,-2000.0,0.00023069,2]
[422451728,1778963440000,-321.0,0.00023,2]
[422451731,1778963440000,-159.62060025,0.00023,2]
[422451732,1778963440000,-482.0,0.00023,2]
[422451729,1778963440000,-305.0,0.00023,2]
[422451733,1778963440000,-2000.0,0.00023069,2]
[422451730,1778963440000,-243.0,0.00023,2]
[422451675,1778963440000,-641.0,0.00022,2]
[422451723,1778963440000,-641.0,0.00023,2]
[422451704,1778963440000,-150.0,0.00022488,2]
[422451738,1778963440000,-2000.0,0.00023069,2]
[422451706,1778963440000,-174.01032978,0.00022488,2]
[422451703,1778963440000,-150.0,0.00022488,2]
[422451673,1778963440000,-229.0,0.00022,2]
[422451671,1778963440000,-5000.0,0.00021918,2]
[422451678,1778963440000,-237.0,0.00022,2]
[422451674,1778963440000,-159.0,0.00022,2]
[422451679,1778963440000,-978.0,0.00022,2]
[422451677,1778963440000,-235.0,0.00022,2]
[422451683,1778963440000,-482.0,0.00022,2]
[422451694,1778963440000,-225.27527903,0.00022407,2]
[422451684,1778963440000,-475.85500783,0.00022051,2]
[422451695,1778963440000,-1755.33,0.00022466,2]
[422451693,1778963440000,-151.09078875,0.00022407,2]
[422451682,1778963440000,-155.0,0.00022,2]
[422451685,1778963440000,-475.82,0.00022133,2]
[422451689,1778963440000,-986.58715485,0.00022186,2]
[422451676,1778963440000,-822.0,0.00022,2]
[422451692,1778963440000,-2956.42403144,0.00022362,21]
[422451701,1778963440000,-150.0,0.00022488,2]
[422451702,1778963440000,-150.0,0.00022488,2]
[422451698,1778963440000,-5400.67424511,0.00022481,2]
[422451700,1778963440000,-150.0,0.00022488,2]
[422451688,1778963440000,-181.08010149,0.00022143,2]
[422451696,1778963440000,-1573.07,0.00022466,2]
[422451699,1778963440000,-150.3516787,0.00022488,2]
[422451707,1778963440000,-150.0,0.00022488,2]
[422451697,1778963440000,-1679.19,0.00022466,2]
[422451690,1778963440000,-450.70191553,0.0002226,2]
[422451687,1778963440000,-482.17,0.00022133,2]
[422451691,1778963440000,-605.6,0.00022353,2]
[422451686,1778963440000,-475.82,0.00022133,2]
[422451708,1778963440000,-150.0,0.00022488,2]
[422451783,1778963441000,-1281.822,0.00023527,2]
[422451784,1778963441000,-1242.749,0.00023527,2]
[422451785,1778963441000,-3689.286,0.00023527,2]
[422451777,1778963441000,-194.72792766,0.00023239,2]
[422451781,1778963441000,-150.0,0.00023425,4]
[422451766,1778963441000,-158.7,0.00023182,2]
[422451788,1778963441000,-150.0,0.00023737,4]
[422451778,1778963441000,-2000.0,0.0002327,2]
[422451771,1778963441000,-1000.0,0.00023225,2]
[422451776,1778963441000,-914.0,0.00023225,2]
[422451769,1778963441000,-1000.0,0.00023225,2]
[422451772,1778963441000,-1000.0,0.00023225,2]
[422451779,1778963441000,-150.0,0.00023321,4]
[422451782,1778963441000,-284.625,0.00023527,2]
[422451797,1778963441000,-2000.0,0.0002377,2]
[422451780,1778963441000,-150.0,0.00023321,4]
[422451786,1778963441000,-926.0,0.00023527,2]
[422451790,1778963441000,-150.0,0.00023737,4]
[422451801,1778963441000,-2000.0,0.0002377,2]
[422451791,1778963441000,-150.0,0.00023737,4]
[422451789,1778963441000,-150.0,0.00023737,4]
[422451794,1778963441000,-2000.0,0.0002377,2]
[422451796,1778963441000,-2000.0,0.0002377,2]
[422451800,1778963441000,-2000.0,0.0002377,2]
[422451793,1778963441000,-2000.0,0.0002377,2]
[422451792,1778963441000,-2000.0,0.0002377,2]
[422451795,1778963441000,-2000.0,0.0002377,2]
[422451773,1778963441000,-1000.0,0.00023225,2]
[422451798,1778963441000,-2000.0,0.0002377,2]
[422451787,1778963441000,-1978.06,0.00023689,2]
[422451767,1778963441000,-1000.0,0.00023225,2]
[422451755,1778963441000,-5400.67424511,0.00023144,2]
[422451774,1778963441000,-1000.0,0.00023225,2]
[422451799,1778963441000,-2000.0,0.0002377,2]
[422451746,1778963441000,-2000.0,0.00023069,2]
[422451747,1778963441000,-2000.0,0.00023069,2]
[422451748,1778963441000,-2000.0,0.00023069,2]
[422451749,1778963441000,-2000.0,0.00023069,2]
[422451739,1778963441000,-2000.0,0.00023069,2]
[422451740,1778963441000,-2000.0,0.00023069,2]
[422451741,1778963441000,-2000.0,0.00023069,2]
[422451744,1778963441000,-2000.0,0.00023069,2]
[422451743,1778963441000,-2000.0,0.00023069,2]
[422451745,1778963441000,-2000.0,0.00023069,2]
[422451742,1778963441000,-2000.0,0.00023069,2]
[422451750,1778963441000,-2000.0,0.00023069,2]
[422451754,1778963441000,-450.70191553,0.00023116,2]
[422451752,1778963441000,-2000.0,0.00023069,2]
[422451753,1778963441000,-150.0,0.00023112,4]
[422451758,1778963441000,-2000.0,0.0002316,2]
[422451756,1778963441000,-2000.0,0.0002316,2]
[422451751,1778963441000,-2000.0,0.00023069,2]
[422451757,1778963441000,-2000.0,0.0002316,2]
[422451760,1778963441000,-2000.0,0.0002316,2]
[422451763,1778963441000,-2000.0,0.0002316,2]
[422451759,1778963441000,-2000.0,0.0002316,2]
[422451762,1778963441000,-2000.0,0.0002316,2]
[422451761,1778963441000,-2000.0,0.0002316,2]
[422451765,1778963441000,-2000.0,0.0002316,2]
[422451775,1778963441000,-1000.0,0.00023225,2]
[422451768,1778963441000,-1000.0,0.00023225,2]
[422451764,1778963441000,-2000.0,0.0002316,2]
[422451770,1778963441000,-1000.0,0.00023225,2]
[422451802,1778963441000,-2000.0,0.0002377,2]
[422451805,1778963441000,-2000.0,0.0002377,2]
[422451848,1778963441000,-150.0,0.0002452,2]
[422451837,1778963441000,-209.40437684,0.00024335,2]
[422451833,1778963441000,-150.0,0.00024153,4]
[422451830,1778963441000,-482.0,0.00024,2]
[422451842,1778963441000,-500.61920959,0.00024519,2]
[422451841,1778963441000,-723.9807223,0.00024475,2]
[422451844,1778963441000,-150.0,0.0002452,2]
[422451843,1778963441000,-150.0,0.0002452,2]
[422451853,1778963441000,-159.63,0.00024626,2]
[422451845,1778963441000,-150.0,0.0002452,2]
[422451850,1778963441000,-150.0,0.0002452,2]
[422451847,1778963441000,-150.0,0.0002452,2]
[422451849,1778963441000,-150.0,0.0002452,2]
[422451846,1778963441000,-150.0,0.0002452,2]
[422451851,1778963441000,-11186.88729278,0.00024558,2]
[422451854,1778963441000,-500.0,0.00024657,2]
[422451855,1778963441000,-500.0,0.00024657,2]
[422451866,1778963441000,-500.0,0.00024657,2]
[422451863,1778963441000,-500.0,0.00024657,2]